[Event "Late-Titled-Tuesday-Blitz-March-12-2024"]
[Site "Chess.com"]
[Date "2024.03.12"]
[Round "7"]
[White "Eloist"]
[Black "Alex_Banzea"]
[Result "1-0"]
[WhiteElo "2480"]
[BlackElo "2647"]
[TimeControl "180+1"]
[EndTime "15:16:30 PDT"]
[Termination "Eloist won by checkmate"]

1. e4 {[%clk 0:03:00.9]} 1... c6 {[%clk 0:02:17.9]} 2. Nf3 {[%clk 0:02:58.7]}
2... d5 {[%clk 0:02:18.8]} 3. d3 {[%clk 0:02:58.4]} 3... g6 {[%clk 0:02:18.6]}
4. e5 {[%clk 0:02:57.8]} 4... Bg4 {[%clk 0:02:17.7]} 5. Nbd2 {[%clk 0:02:54]}
5... c5 {[%clk 0:02:15.5]} 6. h3 {[%clk 0:02:52.8]} 6... Bxf3 {[%clk 0:02:15.5]}
7. Nxf3 {[%clk 0:02:52.8]} 7... Nc6 {[%clk 0:02:16.4]} 8. c3 {[%clk 0:02:49.4]}
8... e6 {[%clk 0:02:16.4]} 9. d4 {[%clk 0:02:44.2]} 9... cxd4 {[%clk 0:02:10.8]}
10. cxd4 {[%clk 0:02:43.9]} 10... Bb4+ {[%clk 0:02:04.7]} 11. Bd2 {[%clk
0:02:43.8]} 11... Qa5 {[%clk 0:02:04.2]} 12. a3 {[%clk 0:02:42.3]} 12... Bxd2+
{[%clk 0:02:03.9]} 13. Qxd2 {[%clk 0:02:43.2]} 13... Qxd2+ {[%clk 0:02:03.3]}
14. Kxd2 {[%clk 0:02:44.1]} 14... Nge7 {[%clk 0:02:03.7]} 15. Bd3 {[%clk
0:02:40.9]} 15... Kd7 {[%clk 0:01:44]} 16. b4 {[%clk 0:02:40.7]} 16... h6 {[%clk
0:01:23.4]} 17. Rhc1 {[%clk 0:02:32.8]} 17... Rac8 {[%clk 0:01:05.9]} 18. Rc3
{[%clk 0:02:31.5]} 18... Nb8 {[%clk 0:00:38.6]} 19. Bb5+ {[%clk 0:02:30.6]}
19... Nec6 {[%clk 0:00:38.6]} 20. Rac1 {[%clk 0:02:27]} 20... Rc7 {[%clk
0:00:33.9]} 21. Ba4 {[%clk 0:02:21.8]} 21... a6 {[%clk 0:00:25.1]} 22. Kd3
{[%clk 0:02:13.7]} 22... Rhc8 {[%clk 0:00:25.7]} 23. Nd2 {[%clk 0:02:13.2]}
23... Kd8 {[%clk 0:00:23.2]} 24. Bd1 {[%clk 0:02:04.3]} 24... Ne7 {[%clk
0:00:20.2]} 25. Nb3 {[%clk 0:02:00]} 25... Rxc3+ {[%clk 0:00:19.4]} 26. Rxc3
{[%clk 0:02:00.9]} 26... Rxc3+ {[%clk 0:00:19.5]} 27. Kxc3 {[%clk 0:02:01.8]}
27... b6 {[%clk 0:00:20.2]} 28. Be2 {[%clk 0:01:56.6]} 28... Kc7 {[%clk
0:00:20.6]} 29. Bd3 {[%clk 0:01:53.2]} 29... Kb7 {[%clk 0:00:19.9]} 30. f4
{[%clk 0:01:43.1]} 30... Nbc6 {[%clk 0:00:15.7]} 31. Nd2 {[%clk 0:01:42.5]}
31... Nb8 {[%clk 0:00:14.5]} 32. g4 {[%clk 0:01:42.4]} 32... Kc7 {[%clk
0:00:14.1]} 33. Nf3 {[%clk 0:01:42.1]} 33... Kb7 {[%clk 0:00:02.2]} 34. Nh4
{[%clk 0:01:39.2]} 34... Kc7 {[%clk 0:00:02.8]} 35. f5 {[%clk 0:01:39.1]} 35...
gxf5 {[%clk 0:00:03.7]} 36. gxf5 {[%clk 0:01:38.9]} 36... Nxf5 {[%clk
0:00:04.2]} 37. Bxf5 {[%clk 0:01:35.2]} 37... exf5 {[%clk 0:00:05.1]} 38. Nxf5
{[%clk 0:01:35.6]} 38... h5 {[%clk 0:00:05.1]} 39. Ng7 {[%clk 0:01:35.4]} 39...
h4 {[%clk 0:00:03.7]} 40. Nf5 {[%clk 0:01:35.4]} 40... Kd7 {[%clk 0:00:03.7]}
41. Nxh4 {[%clk 0:01:35.2]} 41... Ke6 {[%clk 0:00:04.6]} 42. Kd3 {[%clk
0:01:31.8]} 42... Nc6 {[%clk 0:00:03.6]} 43. Ke3 {[%clk 0:01:31.2]} 43... f6
{[%clk 0:00:04]} 44. Nf3 {[%clk 0:01:25.3]} 44... fxe5 {[%clk 0:00:02.9]} 45.
Nxe5 {[%clk 0:01:24.4]} 45... Ne7 {[%clk 0:00:02.7]} 46. Kf4 {[%clk 0:01:22.4]}
46... Nf5 {[%clk 0:00:02]} 47. Nf3 {[%clk 0:01:22]} 47... Nd6 {[%clk 0:00:02.2]}
48. a4 {[%clk 0:01:20.1]} 48... Nc4 {[%clk 0:00:02.4]} 49. h4 {[%clk 0:01:18.5]}
49... Nb2 {[%clk 0:00:02.6]} 50. h5 {[%clk 0:01:16]} 50... Nxa4 {[%clk
0:00:02.2]} 51. Kg5 {[%clk 0:01:14.9]} 51... Kf7 {[%clk 0:00:02.4]} 52. Ne5+
{[%clk 0:01:13.9]} 52... Kg8 {[%clk 0:00:02.5]} 53. Kg6 {[%clk 0:01:13.2]} 53...
Nc3 {[%clk 0:00:02.5]} 54. h6 {[%clk 0:01:10]} 54... Ne4 {[%clk 0:00:01.8]} 55.
h7+ {[%clk 0:01:10.2]} 55... Kh8 {[%clk 0:00:02.5]} 56. Nf7# {[%clk 0:01:10.4]}
1-0

[Event "Late-Titled-Tuesday-Blitz-March-12-2024"]
[Site "Chess.com"]
[Date "2024.03.12"]
[Round "7"]
[White "lamomiajunior"]
[Black "GlavkonVVS"]
[Result "1-0"]
[WhiteElo "2787"]
[BlackElo "2606"]
[TimeControl "180+1"]
[EndTime "15:16:31 PDT"]
[Termination "lamomiajunior won by checkmate"]

1. d4 {[%clk 0:02:57.9]} 1... Nf6 {[%clk 0:03:00.1]} 2. c4 {[%clk 0:02:58.1]}
2... c5 {[%clk 0:03:00.5]} 3. d5 {[%clk 0:02:58.1]} 3... e6 {[%clk 0:03:01]} 4.
Nc3 {[%clk 0:02:57.9]} 4... exd5 {[%clk 0:03:01.5]} 5. cxd5 {[%clk 0:02:58.8]}
5... d6 {[%clk 0:03:02.1]} 6. e4 {[%clk 0:02:59.3]} 6... g6 {[%clk 0:03:02.7]}
7. f4 {[%clk 0:03:00]} 7... Bg7 {[%clk 0:03:03.1]} 8. Bb5+ {[%clk 0:02:59.7]}
8... Nfd7 {[%clk 0:03:03.6]} 9. a4 {[%clk 0:02:59]} 9... O-O {[%clk 0:03:03.7]}
10. Nf3 {[%clk 0:02:59.3]} 10... Na6 {[%clk 0:02:59.4]} 11. O-O {[%clk
0:02:52.3]} 11... Nb4 {[%clk 0:02:59.4]} 12. h3 {[%clk 0:02:52.3]} 12... a6
{[%clk 0:02:58.4]} 13. Bc4 {[%clk 0:02:52.9]} 13... Re8 {[%clk 0:02:54.1]} 14.
Re1 {[%clk 0:02:51]} 14... Rb8 {[%clk 0:02:50.8]} 15. Be3 {[%clk 0:02:47.7]}
15... Nf6 {[%clk 0:02:48.4]} 16. Bf2 {[%clk 0:02:47.3]} 16... Bd7 {[%clk
0:02:37.6]} 17. a5 {[%clk 0:02:43.9]} 17... Bb5 {[%clk 0:02:14.6]} 18. Bxb5
{[%clk 0:02:17.8]} 18... axb5 {[%clk 0:02:14.6]} 19. Qd2 {[%clk 0:02:09.3]}
19... c4 {[%clk 0:02:08.7]} 20. Bb6 {[%clk 0:02:09.3]} 20... Qd7 {[%clk
0:02:04.5]} 21. e5 {[%clk 0:01:55.2]} 21... Nh5 {[%clk 0:01:58.5]} 22. g4 {[%clk
0:01:18.7]} 22... Nd3 {[%clk 0:01:52.1]} 23. gxh5 {[%clk 0:01:18.8]} 23... Qxh3
{[%clk 0:01:51.3]} 24. Qg2 {[%clk 0:01:17.8]} 24... Qxh5 {[%clk 0:01:49.6]} 25.
e6 {[%clk 0:01:02.4]} 25... fxe6 {[%clk 0:01:41.4]} 26. dxe6 {[%clk 0:01:02.2]}
26... Nxf4 {[%clk 0:01:39.4]} 27. Qg3 {[%clk 0:01:02.7]} 27... Nd3 {[%clk
0:01:34.7]} 28. Re2 {[%clk 0:00:57.4]} 28... Rf8 {[%clk 0:01:21.4]} 29. Rf1
{[%clk 0:00:57.4]} 29... Rf5 {[%clk 0:01:14.8]} 30. e7 {[%clk 0:00:55.5]} 30...
Re8 {[%clk 0:01:14.8]} 31. Rh2 {[%clk 0:00:52]} 31... Be5 {[%clk 0:01:04.3]} 32.
Rxh5 {[%clk 0:00:47.9]} 32... Bxg3 {[%clk 0:01:00.6]} 33. Rxf5 {[%clk
0:00:48.3]} 33... gxf5 {[%clk 0:01:00.9]} 34. Nd4 {[%clk 0:00:48.4]} 34... Be5
{[%clk 0:00:41.4]} 35. Nxf5 {[%clk 0:00:47.6]} 35... b4 {[%clk 0:00:33.9]} 36.
Ne4 {[%clk 0:00:42.6]} 36... Nxb2 {[%clk 0:00:29.9]} 37. Bd8 {[%clk 0:00:30.1]}
37... c3 {[%clk 0:00:22]} 38. Nfxd6 {[%clk 0:00:30.3]} 38... Bxd6 {[%clk
0:00:19.9]} 39. Nxd6 {[%clk 0:00:31.2]} 39... c2 {[%clk 0:00:19.9]} 40. Nxe8
{[%clk 0:00:31.2]} 40... Nd1 {[%clk 0:00:20]} 41. Nf6+ {[%clk 0:00:31.6]} 41...
Kg7 {[%clk 0:00:20.1]} 42. e8=Q {[%clk 0:00:30.9]} 42... c1=Q {[%clk 0:00:20.5]}
43. Qg8+ {[%clk 0:00:31.1]} 43... Kh6 {[%clk 0:00:20.1]} 44. Qxh7+ {[%clk
0:00:32]} 44... Kg5 {[%clk 0:00:20.1]} 45. Qh5# {[%clk 0:00:32.9]} 1-0

[Event "Late-Titled-Tuesday-Blitz-March-12-2024"]
[Site "Chess.com"]
[Date "2024.03.12"]
[Round "7"]
[White "mightysmasher"]
[Black "Szparu"]
[Result "0-1"]
[WhiteElo "2596"]
[BlackElo "2797"]
[TimeControl "180+1"]
[EndTime "15:16:31 PDT"]
[Termination "Szparu won by checkmate"]

1. e4 {[%clk 0:03:00.9]} 1... c5 {[%clk 0:02:43.1]} 2. c3 {[%clk 0:03:00.4]}
2... e6 {[%clk 0:02:41.4]} 3. d4 {[%clk 0:03:00.8]} 3... d5 {[%clk 0:02:40.7]}
4. exd5 {[%clk 0:03:01.4]} 4... exd5 {[%clk 0:02:40.4]} 5. Nf3 {[%clk
0:03:02.1]} 5... Nc6 {[%clk 0:02:39.6]} 6. Bb5 {[%clk 0:03:02.3]} 6... Nf6
{[%clk 0:02:39.2]} 7. O-O {[%clk 0:03:01.9]} 7... Bd6 {[%clk 0:02:39.4]} 8. dxc5
{[%clk 0:02:59]} 8... Bxc5 {[%clk 0:02:39.9]} 9. Bg5 {[%clk 0:02:59.5]} 9... Be6
{[%clk 0:02:38.9]} 10. Nd4 {[%clk 0:02:58.6]} 10... O-O {[%clk 0:02:37.4]} 11.
Nxe6 {[%clk 0:02:56.8]} 11... fxe6 {[%clk 0:02:37.3]} 12. Bd3 {[%clk 0:02:57]}
12... h6 {[%clk 0:02:37.2]} 13. Bh4 {[%clk 0:02:53.4]} 13... Qb6 {[%clk
0:02:32.3]} 14. Qe2 {[%clk 0:02:48.5]} 14... e5 {[%clk 0:02:29]} 15. a3 {[%clk
0:02:36]} 15... e4 {[%clk 0:02:28.7]} 16. Bb5 {[%clk 0:02:35]} 16... Ne5 {[%clk
0:02:26.6]} 17. b4 {[%clk 0:02:32.1]} 17... Bd6 {[%clk 0:02:23.9]} 18. Bg3
{[%clk 0:02:31.3]} 18... Rac8 {[%clk 0:02:15.6]} 19. Ba4 {[%clk 0:02:28.1]}
19... Nd3 {[%clk 0:02:08.3]} 20. Bc2 {[%clk 0:02:26.3]} 20... Bxg3 {[%clk
0:02:06.8]} 21. hxg3 {[%clk 0:02:25.6]} 21... Ne5 {[%clk 0:01:55]} 22. Bb3
{[%clk 0:02:19.7]} 22... Kh8 {[%clk 0:01:52]} 23. Ra2 {[%clk 0:02:05.2]} 23...
Nd3 {[%clk 0:01:40.6]} 24. Bc2 {[%clk 0:02:00.2]} 24... Ne5 {[%clk 0:01:29.5]}
25. Bb3 {[%clk 0:01:55.1]} 25... Rc7 {[%clk 0:01:28.2]} 26. Rd2 {[%clk
0:01:53.6]} 26... Nfg4 {[%clk 0:01:13.1]} 27. Bxd5 {[%clk 0:01:40.1]} 27... Re7
{[%clk 0:00:42.7]} 28. Bxe4 {[%clk 0:01:29.4]} 28... Ref7 {[%clk 0:00:25.8]} 29.
Bc2 {[%clk 0:01:09.8]} 29... Rxf2 {[%clk 0:00:25.2]} 30. Rxf2 {[%clk 0:00:59.3]}
30... Rxf2 {[%clk 0:00:24.8]} 31. Qxf2 {[%clk 0:00:34]} 31... Nxf2 {[%clk
0:00:24.9]} 32. Re2 {[%clk 0:00:33.4]} 32... Nfg4+ {[%clk 0:00:21.6]} 33. Kh1
{[%clk 0:00:30.9]} 33... Qf6 {[%clk 0:00:16.5]} 34. Re1 {[%clk 0:00:30.5]} 34...
Qf2 {[%clk 0:00:14.8]} 35. Rd1 {[%clk 0:00:28.9]} 35... Qxc2 {[%clk 0:00:14.5]}
36. Rf1 {[%clk 0:00:28.9]} 36... Qd3 {[%clk 0:00:11.9]} 37. Re1 {[%clk 0:00:27]}
37... Qxg3 {[%clk 0:00:11.5]} 38. Rxe5 {[%clk 0:00:26]} 38... Qh2# {[%clk
0:00:11.8]} 0-1

[Event "Late-Titled-Tuesday-Blitz-March-12-2024"]
[Site "Chess.com"]
[Date "2024.03.12"]
[Round "7"]
[White "GoValya"]
[Black "GilbertoHernandezAmura"]
[Result "0-1"]
[WhiteElo "2261"]
[BlackElo "2444"]
[TimeControl "180+1"]
[EndTime "15:16:31 PDT"]
[Termination "GilbertoHernandezAmura won on time"]

1. d4 {[%clk 0:03:00.9]} 1... Nf6 {[%clk 0:02:59.6]} 2. Nf3 {[%clk 0:03:01]}
2... d5 {[%clk 0:02:58.9]} 3. c4 {[%clk 0:03:00.6]} 3... c6 {[%clk 0:02:58.3]}
4. Nc3 {[%clk 0:03:00.3]} 4... g6 {[%clk 0:02:56.4]} 5. g3 {[%clk 0:03:00.6]}
5... Bg7 {[%clk 0:02:55.7]} 6. Bg2 {[%clk 0:03:00.9]} 6... O-O {[%clk
0:02:55.3]} 7. O-O {[%clk 0:03:01.1]} 7... Nbd7 {[%clk 0:02:46.6]} 8. b3 {[%clk
0:02:54.1]} 8... dxc4 {[%clk 0:02:30.5]} 9. bxc4 {[%clk 0:02:53.7]} 9... Nb6
{[%clk 0:02:30.7]} 10. Qd3 {[%clk 0:02:47.4]} 10... Be6 {[%clk 0:02:29]} 11. Nd2
{[%clk 0:02:45.7]} 11... Qc7 {[%clk 0:02:17.5]} 12. e4 {[%clk 0:02:36.1]} 12...
Rad8 {[%clk 0:02:12.1]} 13. f4 {[%clk 0:01:57.3]} 13... Nfd7 {[%clk 0:01:18.9]}
14. d5 {[%clk 0:01:17.2]} 14... cxd5 {[%clk 0:01:12.7]} 15. exd5 {[%clk
0:00:50.3]} 15... Bf5 {[%clk 0:01:03.4]} 16. Qf3 {[%clk 0:00:16.3]} 16... Nxc4
{[%clk 0:00:59.6]} 17. Nxc4 {[%clk 0:00:16.5]} 17... Qxc4 {[%clk 0:00:57]} 18.
Bb2 {[%clk 0:00:17]} 18... Nc5 {[%clk 0:00:49.8]} 19. Rad1 {[%clk 0:00:07.3]}
19... Nd3 {[%clk 0:00:45.7]} 20. Rxd3 {[%clk 0:00:05.5]} 20... Bxd3 {[%clk
0:00:42.2]} 21. Rc1 {[%clk 0:00:05.5]} 21... Bf5 {[%clk 0:00:35.1]} 22. Ne2
{[%clk 0:00:04.2]} 22... Qxa2 {[%clk 0:00:26.8]} 23. Bxg7 {[%clk 0:00:03.7]}
23... Kxg7 {[%clk 0:00:27]} 24. g4 {[%clk 0:00:04.1]} 24... Bd7 {[%clk
0:00:18.8]} 25. f5 {[%clk 0:00:04.2]} 25... Qb2 {[%clk 0:00:16.4]} 26. Rf1
{[%clk 0:00:01.9]} 26... Qe5 {[%clk 0:00:14.5]} 27. Kh1 {[%clk 0:00:01.7]} 27...
b5 {[%clk 0:00:14]} 28. Nf4 {[%clk 0:00:01.6]} 28... b4 {[%clk 0:00:13.9]} 0-1

[Event "Late-Titled-Tuesday-Blitz-March-12-2024"]
[Site "Chess.com"]
[Date "2024.03.12"]
[Round "7"]
[White "PoXerStar"]
[Black "Byniolus"]
[Result "0-1"]
[WhiteElo "2381"]
[BlackElo "2772"]
[TimeControl "180+1"]
[EndTime "15:16:35 PDT"]
[Termination "Byniolus won on time"]

1. d4 {[%clk 0:02:52.5]} 1... d6 {[%clk 0:03:00.2]} 2. e4 {[%clk 0:02:51.7]}
2... g6 {[%clk 0:03:00.6]} 3. Nc3 {[%clk 0:02:51.1]} 3... a6 {[%clk 0:03:01.1]}
4. a4 {[%clk 0:02:48.2]} 4... b6 {[%clk 0:03:00.9]} 5. Nf3 {[%clk 0:02:47.3]}
5... e6 {[%clk 0:03:01.3]} 6. h3 {[%clk 0:02:44.2]} 6... c6 {[%clk 0:03:01]} 7.
Bd3 {[%clk 0:02:26.9]} 7... f6 {[%clk 0:03:00.6]} 8. O-O {[%clk 0:02:19.8]} 8...
Ne7 {[%clk 0:02:58.3]} 9. e5 {[%clk 0:02:15.1]} 9... dxe5 {[%clk 0:02:40.6]} 10.
dxe5 {[%clk 0:02:13.6]} 10... f5 {[%clk 0:02:41]} 11. Bg5 {[%clk 0:02:10.1]}
11... Bg7 {[%clk 0:02:37.1]} 12. Qc1 {[%clk 0:02:06.9]} 12... h6 {[%clk
0:02:25.9]} 13. Bf6 {[%clk 0:02:03.9]} 13... O-O {[%clk 0:02:18.9]} 14. Ne2
{[%clk 0:01:57.7]} 14... Nd7 {[%clk 0:02:12.1]} 15. Bxg7 {[%clk 0:01:45.7]}
15... Kxg7 {[%clk 0:02:13]} 16. Nf4 {[%clk 0:01:44.4]} 16... Nc5 {[%clk
0:02:10.4]} 17. Bc4 {[%clk 0:01:44.1]} 17... Nd5 {[%clk 0:02:05.7]} 18. Rd1
{[%clk 0:01:33.5]} 18... Qe7 {[%clk 0:01:57.1]} 19. Be2 {[%clk 0:01:24.6]} 19...
a5 {[%clk 0:01:50.7]} 20. c4 {[%clk 0:01:21.1]} 20... Nb3 {[%clk 0:01:39.7]} 21.
Nxd5 {[%clk 0:01:10.4]} 21... cxd5 {[%clk 0:01:34.4]} 22. Qf4 {[%clk 0:01:07]}
22... Nxa1 {[%clk 0:01:32.8]} 23. cxd5 {[%clk 0:01:05.7]} 23... Nb3 {[%clk
0:01:19.9]} 24. d6 {[%clk 0:01:05.6]} 24... Qf7 {[%clk 0:01:20.3]} 25. Bb5
{[%clk 0:00:51.9]} 25... Nc5 {[%clk 0:01:19]} 26. Nd4 {[%clk 0:00:49.8]} 26...
Bd7 {[%clk 0:01:14.7]} 27. Bxd7 {[%clk 0:00:45.5]} 27... Qxd7 {[%clk 0:01:05.6]}
28. Nb5 {[%clk 0:00:45.5]} 28... Rac8 {[%clk 0:00:59.8]} 29. h4 {[%clk
0:00:39.4]} 29... Rfd8 {[%clk 0:00:45.6]} 30. h5 {[%clk 0:00:22.3]} 30... g5
{[%clk 0:00:44.2]} 31. Qg3 {[%clk 0:00:22.4]} 31... Nxa4 {[%clk 0:00:41.7]} 32.
Nd4 {[%clk 0:00:17]} 32... Nc5 {[%clk 0:00:41.8]} 33. f4 {[%clk 0:00:17]} 33...
g4 {[%clk 0:00:42.1]} 34. Qh4 {[%clk 0:00:15]} 34... Qf7 {[%clk 0:00:42.6]} 35.
Ne2 {[%clk 0:00:06.7]} 35... Ne4 {[%clk 0:00:37.5]} 36. d7 {[%clk 0:00:07.1]}
36... Rxd7 {[%clk 0:00:32.4]} 37. Rxd7 {[%clk 0:00:06.5]} 37... Qxd7 {[%clk
0:00:33.3]} 38. Ng3 {[%clk 0:00:05.8]} 38... Qd8 {[%clk 0:00:31]} 0-1

[Event "Late-Titled-Tuesday-Blitz-March-12-2024"]
[Site "Chess.com"]
[Date "2024.03.12"]
[Round "7"]
[White "baki83"]
[Black "Bryanl106"]
[Result "0-1"]
[WhiteElo "2831"]
[BlackElo "2675"]
[TimeControl "180+1"]
[EndTime "15:16:37 PDT"]
[Termination "Bryanl106 won by checkmate"]

1. e4 {[%clk 0:02:58.8]} 1... e5 {[%clk 0:03:00.1]} 2. Nf3 {[%clk 0:02:53.1]}
2... Nc6 {[%clk 0:02:59]} 3. Bb5 {[%clk 0:02:52.7]} 3... Nf6 {[%clk 0:02:59.7]}
4. O-O {[%clk 0:02:52.3]} 4... Nxe4 {[%clk 0:02:58.1]} 5. Re1 {[%clk 0:02:51.9]}
5... Nd6 {[%clk 0:02:57.5]} 6. Nxe5 {[%clk 0:02:51.7]} 6... Nxe5 {[%clk
0:02:56.5]} 7. Rxe5+ {[%clk 0:02:51.1]} 7... Be7 {[%clk 0:02:56.9]} 8. Bf1
{[%clk 0:02:49.7]} 8... O-O {[%clk 0:02:57]} 9. Nc3 {[%clk 0:02:49]} 9... Bf6
{[%clk 0:02:55.3]} 10. Re1 {[%clk 0:02:48.9]} 10... c6 {[%clk 0:02:53.1]} 11. d4
{[%clk 0:02:44.7]} 11... Nf5 {[%clk 0:02:52.5]} 12. d5 {[%clk 0:02:40.5]} 12...
d6 {[%clk 0:02:48.6]} 13. Ne4 {[%clk 0:02:37.5]} 13... Be5 {[%clk 0:02:45.6]}
14. g3 {[%clk 0:02:32]} 14... cxd5 {[%clk 0:02:38.7]} 15. Ng5 {[%clk 0:02:10.1]}
15... d4 {[%clk 0:02:32.1]} 16. Bg2 {[%clk 0:02:06.2]} 16... h6 {[%clk
0:02:30.4]} 17. Ne4 {[%clk 0:02:02]} 17... Qb6 {[%clk 0:02:25.7]} 18. Kh1 {[%clk
0:01:43.6]} 18... d5 {[%clk 0:02:19.9]} 19. Nd2 {[%clk 0:01:42.4]} 19... Qd6
{[%clk 0:02:14.1]} 20. Nf3 {[%clk 0:01:39.2]} 20... Bf6 {[%clk 0:02:13.6]} 21.
Qd3 {[%clk 0:01:36]} 21... Bd7 {[%clk 0:02:11.6]} 22. Bd2 {[%clk 0:01:35.8]}
22... Rfe8 {[%clk 0:02:06.3]} 23. a3 {[%clk 0:01:34.5]} 23... Qb6 {[%clk
0:01:56.2]} 24. b3 {[%clk 0:01:24.6]} 24... Nd6 {[%clk 0:01:54.5]} 25. a4 {[%clk
0:00:55.5]} 25... Ne4 {[%clk 0:01:53.6]} 26. Kg1 {[%clk 0:00:53.2]} 26... Rac8
{[%clk 0:01:49.9]} 27. Rac1 {[%clk 0:00:52]} 27... Bf5 {[%clk 0:01:46.4]} 28. a5
{[%clk 0:00:50.6]} 28... Qc5 {[%clk 0:01:45.3]} 29. Qf1 {[%clk 0:00:44.1]} 29...
Nxd2 {[%clk 0:01:42]} 30. Rxe8+ {[%clk 0:00:43.7]} 30... Rxe8 {[%clk 0:01:40.7]}
31. Nxd2 {[%clk 0:00:44.3]} 31... Bxc2 {[%clk 0:01:39.8]} 32. b4 {[%clk
0:00:40.9]} 32... Qc6 {[%clk 0:01:31]} 33. Bxd5 {[%clk 0:00:31.7]} 33... Qxd5
{[%clk 0:01:30.6]} 34. Rxc2 {[%clk 0:00:32.3]} 34... d3 {[%clk 0:01:31.1]} 35.
Rc5 {[%clk 0:00:23.5]} 35... Qd4 {[%clk 0:01:25.6]} 36. Rc4 {[%clk 0:00:23.9]}
36... Qd7 {[%clk 0:01:24.5]} 37. Ne4 {[%clk 0:00:20.1]} 37... Be7 {[%clk
0:01:20.5]} 38. Qd1 {[%clk 0:00:16.9]} 38... Rd8 {[%clk 0:01:19.9]} 39. Nd2
{[%clk 0:00:14.7]} 39... b5 {[%clk 0:01:15.9]} 40. axb6 {[%clk 0:00:13.4]} 40...
axb6 {[%clk 0:01:16.8]} 41. Rg4 {[%clk 0:00:13.1]} 41... Kh8 {[%clk 0:01:12.3]}
42. h4 {[%clk 0:00:11.4]} 42... f5 {[%clk 0:01:09.6]} 43. Rg6 {[%clk 0:00:11]}
43... Bxb4 {[%clk 0:01:09.3]} 44. Nf3 {[%clk 0:00:07.7]} 44... Bc5 {[%clk
0:01:02.2]} 45. Kh2 {[%clk 0:00:05.2]} 45... Qd5 {[%clk 0:00:59.3]} 46. Qa1
{[%clk 0:00:03.7]} 46... Bd4 {[%clk 0:00:51.8]} 47. Qd1 {[%clk 0:00:02.9]} 47...
Bf6 {[%clk 0:00:50.9]} 48. Kh3 {[%clk 0:00:02.6]} 48... Qf7 {[%clk 0:00:51.2]}
49. h5 {[%clk 0:00:02.6]} 49... d2 {[%clk 0:00:49.6]} 50. Nxd2 {[%clk
0:00:02.6]} 50... Qd5 {[%clk 0:00:49.4]} 51. Qa4 {[%clk 0:00:01.2]} 51... Qh1#
{[%clk 0:00:49.6]} 0-1

[Event "Late-Titled-Tuesday-Blitz-March-12-2024"]
[Site "Chess.com"]
[Date "2024.03.12"]
[Round "7"]
[White "masnyszachistaaa"]
[Black "olgerts_indricans"]
[Result "1-0"]
[WhiteElo "2553"]
[BlackElo "2406"]
[TimeControl "180+1"]
[EndTime "15:16:37 PDT"]
[Termination "masnyszachistaaa won by resignation"]

1. e4 {[%clk 0:03:00.9]} 1... c5 {[%clk 0:02:59.6]} 2. Ne2 {[%clk 0:02:59.7]}
2... e6 {[%clk 0:02:59.8]} 3. Nbc3 {[%clk 0:02:59]} 3... Nc6 {[%clk 0:02:58.3]}
4. d4 {[%clk 0:02:58.2]} 4... cxd4 {[%clk 0:02:59.2]} 5. Nxd4 {[%clk 0:02:59]}
5... Qc7 {[%clk 0:02:59.7]} 6. g3 {[%clk 0:02:58.6]} 6... a6 {[%clk 0:02:59.9]}
7. Bg2 {[%clk 0:02:58.8]} 7... Nf6 {[%clk 0:03:00.6]} 8. O-O {[%clk 0:02:58.6]}
8... Nxd4 {[%clk 0:03:00.8]} 9. Qxd4 {[%clk 0:02:58.4]} 9... Bc5 {[%clk
0:03:01.7]} 10. Qd3 {[%clk 0:02:57.7]} 10... d6 {[%clk 0:03:01.5]} 11. Bg5
{[%clk 0:02:49.2]} 11... Ng4 {[%clk 0:03:01.4]} 12. h3 {[%clk 0:02:40.3]} 12...
Ne5 {[%clk 0:03:00.2]} 13. Qe2 {[%clk 0:02:39.3]} 13... Nc4 {[%clk 0:02:57.9]}
14. Rab1 {[%clk 0:02:28.6]} 14... b5 {[%clk 0:02:48.1]} 15. Nd1 {[%clk
0:01:51.7]} 15... O-O {[%clk 0:02:30.9]} 16. b3 {[%clk 0:01:45.2]} 16... Na3
{[%clk 0:02:26.9]} 17. Rc1 {[%clk 0:01:45.1]} 17... b4 {[%clk 0:02:27.1]} 18. c3
{[%clk 0:01:36.8]} 18... a5 {[%clk 0:02:14.2]} 19. c4 {[%clk 0:01:34.6]} 19...
Bb7 {[%clk 0:02:10.8]} 20. Be3 {[%clk 0:01:33.2]} 20... a4 {[%clk 0:02:06.2]}
21. Nb2 {[%clk 0:01:30.9]} 21... axb3 {[%clk 0:02:05.9]} 22. axb3 {[%clk
0:01:31.8]} 22... Bc6 {[%clk 0:01:59]} 23. Nd3 {[%clk 0:01:30.3]} 23... Bxe3
{[%clk 0:01:49.6]} 24. Qxe3 {[%clk 0:01:31.2]} 24... Rab8 {[%clk 0:01:49.2]} 25.
Rfd1 {[%clk 0:01:22.9]} 25... Rb7 {[%clk 0:01:45.5]} 26. c5 {[%clk 0:01:16.3]}
26... Bb5 {[%clk 0:01:31.9]} 27. Nxb4 {[%clk 0:01:13.8]} 27... dxc5 {[%clk
0:01:26.6]} 28. Rxc5 {[%clk 0:01:14.7]} 28... Qe7 {[%clk 0:01:24.4]} 29. e5
{[%clk 0:01:00.5]} 29... Rc7 {[%clk 0:01:19.3]} 30. Rdc1 {[%clk 0:00:54.2]}
30... Rxc5 {[%clk 0:01:15]} 31. Qxc5 {[%clk 0:00:55.1]} 31... Qd7 {[%clk
0:01:04.1]} 32. Nc6 {[%clk 0:00:49.6]} 32... Bxc6 {[%clk 0:00:54.6]} 33. Bxc6
{[%clk 0:00:50.5]} 33... Qd2 {[%clk 0:00:55.2]} 34. Qxa3 {[%clk 0:00:49.8]}
34... Rc8 {[%clk 0:00:48.6]} 35. b4 {[%clk 0:00:45.8]} 35... h5 {[%clk
0:00:48.7]} 36. h4 {[%clk 0:00:40.7]} 36... g5 {[%clk 0:00:48.8]} 37. hxg5
{[%clk 0:00:40.1]} 37... h4 {[%clk 0:00:49]} 38. gxh4 {[%clk 0:00:29.4]} 38...
Qf4 {[%clk 0:00:48.5]} 39. b5 {[%clk 0:00:25.9]} 39... Qxe5 {[%clk 0:00:46.4]}
40. b6 {[%clk 0:00:22.1]} 40... Rb8 {[%clk 0:00:36.7]} 41. b7 {[%clk 0:00:21.5]}
41... Kh7 {[%clk 0:00:35.4]} 42. Qd3+ {[%clk 0:00:20.3]} 42... Kg7 {[%clk
0:00:35.1]} 43. Qc3 {[%clk 0:00:19.8]} 43... f6 {[%clk 0:00:35.1]} 44. Qxe5
{[%clk 0:00:19.4]} 44... fxe5 {[%clk 0:00:35.4]} 45. Be4 {[%clk 0:00:20.1]}
45... Kf7 {[%clk 0:00:32.8]} 46. Rc8 {[%clk 0:00:20.4]} 1-0